Workbook

Sheet SkillConfig
A1: ID | C1: power | D1: name | E1: dec | H1: attribute | I1: icon | J1: scriptName | K1: IDGroup | L1: timelineName | M1: cd | N1: SkillType | O1: level | P1: effectValue | Q1: intensifierIndex | R1: addPropertyType | S1: addPropertyValue
A2: int | C2: float | D2: int | E2: int | H2: int | I2: string | J2: string | K2: int | L2: string | M2: int | N2: int | O2: int | P2: float[] | Q2: int[] | R2: int[] | S2: float[]
A4: 技能ID IDGroup+技能等级 901开头是法宝技能 | C4: 功法强度 基于标准强度的百分比 50=50% | D4: 名称语言表ID | E4: 描述语言表ID | H4: 技能属性 1=金 2=水 4=木 8=火 16=土 | I4: 图标 | J4: 脚本名称 | K4: 技能组 | L4: 技能的timeline表现，没得就不填，这个可以程序填 | M4: 技能在转盘的触发圈速 | N4: 技能类型: 1= 基础 2=增强型技能 3=法宝技能 4=大道 | O4: 等级 | P4: 效果值 | Q4: 允许被加强的效果下表 | R4: 属性ID表内对应 101=生命百分比 102=攻击百分比 103=防御百分比 | S4: 具体效果值 | U4: 数值1 | V4: 数值2 | W4: 数值3 | X4: 数值4 | Y4: 数值5 | Z4: 数值6 | AA4: 数值7
B5: 英雄功法区域
A6: =K6*10+O6-1 -> 10010 | C6: 100 | F6: 剑诀 | G6: 身体周围幻化出{0}柄细剑，每柄细剑对敌人照成{1}%伤害，如果敌人有debuf状态，则虚剑伤害提升{2}% | H6: 1 | I6: =CONCATENATE("icon_skill_",INT(A6*0.1)) -> icon_skill_1001 | J6: =CONCATENATE("S",K6) -> S1001 | K6: 1001 | L6: jianjue_timeline_TD | M6: 1 | N6: 1 | O6: 1 | P6: =_xlfn.TEXTJOIN(";",1,U6:AA6) -> 6;60;30 | Q6: 2 | R6: 101 | S6: 1 | U6: 6 | V6: 60 | W6: 30
A7: =K7*10+O7-1 -> 10011 | C7: 110 | F7: 剑诀 | G7: 身体周围幻化出{0}柄细剑，每柄细剑对敌人照成{1}%伤害，如果敌人有debuf状态，则虚剑伤害提升{2}% | H7: 1 | I7: icon_skill_1001 | J7: =CONCATENATE("S",K7) -> S1001 | K7: 1001 | L7: jianjue_timeline_TD | M7: 1 | N7: 1 | O7: 2 | P7: =_xlfn.TEXTJOIN(";",1,U7:AA7) -> 6;60;30 | Q7: 2 | R7: 101 | S7: 2 | U7: 6 | V7: 60 | W7: 30
A8: 10012 | C8: 120 | F8: 剑诀 | G8: 身体周围幻化出{0}柄细剑，每柄细剑对敌人照成{1}%伤害，如果敌人有debuf状态，则虚剑伤害提升{2}% | H8: 1 | I8: icon_skill_1001 | J8: S1001 | K8: 1001 | L8: jianjue_timeline_TD | M8: 1 | N8: 1 | O8: 3 | P8: 6;60;30 | Q8: 2 | R8: 101 | S8: 3 | U8: 6 | V8: 60 | W8: 30
A9: 10013 | C9: 130 | F9: 剑诀 | G9: 身体周围幻化出{0}柄细剑，每柄细剑对敌人照成{1}%伤害，如果敌人有debuf状态，则虚剑伤害提升{2}% | H9: 1 | I9: icon_skill_1001 | J9: S1001 | K9: 1001 | L9: jianjue_timeline_TD | M9: 1 | N9: 1 | O9: 4 | P9: 6;60;30 | Q9: 2 | R9: 101 | S9: 4 | U9: 6 | V9: 60 | W9: 30
A10: 10014 | C10: 140 | F10: 剑诀 | G10: 身体周围幻化出{0}柄细剑，每柄细剑对敌人照成{1}%伤害，如果敌人有debuf状态，则虚剑伤害提升{2}% | H10: 1 | I10: icon_skill_1001 | J10: S1001 | K10: 1001 | L10: jianjue_timeline_TD | M10: 1 | N10: 1 | O10: 5 | P10: 6;60;30 | Q10: 2 | R10: 101 | S10: 5 | U10: 6 | V10: 60 | W10: 30
A11: 10015 | C11: 150 | F11: 剑诀 | G11: 身体周围幻化出{0}柄细剑，每柄细剑对敌人照成{1}%伤害，如果敌人有debuf状态，则虚剑伤害提升{2}% | H11: 1 | I11: icon_skill_1001 | J11: S1001 | K11: 1001 | L11: jianjue_timeline_TD | M11: 1 | N11: 1 | O11: 6 | P11: 6;60;30 | Q11: 2 | R11: 101 | S11: 6 | U11: 6 | V11: 60 | W11: 30
A12: 10016 | C12: 160 | F12: 剑诀 | G12: 身体周围幻化出{0}柄细剑，每柄细剑对敌人照成{1}%伤害，如果敌人有debuf状态，则虚剑伤害提升{2}% | H12: 1 | I12: icon_skill_1001 | J12: S1001 | K12: 1001 | L12: jianjue_timeline_TD | M12: 1 | N12: 1 | O12: 7 | P12: 6;60;30 | Q12: 2 | R12: 101 | S12: 7 | U12: 6 | V12: 60 | W12: 30
A13: 10017 | C13: 170 | F13: 剑诀 | G13: 身体周围幻化出{0}柄细剑，每柄细剑对敌人照成{1}%伤害，如果敌人有debuf状态，则虚剑伤害提升{2}% | H13: 1 | I13: icon_skill_1001 | J13: S1001 | K13: 1001 | L13: jianjue_timeline_TD | M13: 1 | N13: 1 | O13: 8 | P13: 6;60;30 | Q13: 2 | R13: 101 | S13: 8 | U13: 6 | V13: 60 | W13: 30
A14: 10018 | C14: 180 | F14: 剑诀 | G14: 身体周围幻化出{0}柄细剑，每柄细剑对敌人照成{1}%伤害，如果敌人有debuf状态，则虚剑伤害提升{2}% | H14: 1 | I14: icon_skill_1001 | J14: S1001 | K14: 1001 | L14: jianjue_timeline_TD | M14: 1 | N14: 1 | O14: 9 | P14: 6;60;30 | Q14: 2 | R14: 101 | S14: 9 | U14: 6 | V14: 60 | W14: 30
A15: 10019 | C15: 190 | F15: 剑诀 | G15: 身体周围幻化出{0}柄细剑，每柄细剑对敌人照成{1}%伤害，如果敌人有debuf状态，则虚剑伤害提升{2}% | H15: 1 | I15: icon_skill_1001 | J15: S1001 | K15: 1001 | L15: jianjue_timeline_TD | M15: 1 | N15: 1 | O15: 10 | P15: 6;60;30 | Q15: 2 | R15: 101 | S15: 10 | U15: 6 | V15: 60 | W15: 30
A17: =K17*10+O17-1 -> 20010 | C17: 100 | F17: 烈焰斩 | G17: 向前方发出1柄剑，对敌人造成{0}%火系伤害，并有{1}%的概率施加1层灼热 | H17: 2 | I17: icon_skill_10001 | J17: =CONCATENATE("S",K17) -> S2001 | K17: 2001 | L17: lieyanjian_timeline_TD | M17: 1 | N17: 1 | O17: 1 | P17: =_xlfn.TEXTJOIN(";",1,U17:AA17) -> 360;48 | Q17: 1 | R17: 102 | S17: 1 | U17: 360 | V17: 48
A18: =K18*10+O18-1 -> 20011 | C18: 110 | F18: 烈焰斩 | G18: 向前方发出1柄剑，对敌人造成{0}%火系伤害，并有{1}%的概率施加1层灼热 | H18: 2 | I18: icon_skill_10001 | J18: =CONCATENATE("S",K18) -> S2001 | K18: 2001 | L18: lieyanjian_timeline_TD | M18: 1 | N18: 1 | O18: 2 | P18: =_xlfn.TEXTJOIN(";",1,U18:AA18) -> 360;48 | Q18: 1 | R18: 102 | S18: 2 | U18: 360 | V18: 48
A19: 20012 | C19: 120 | F19: 烈焰斩 | G19: 向前方发出1柄剑，对敌人造成{0}%火系伤害，并有{1}%的概率施加1层灼热 | H19: 2 | I19: icon_skill_10001 | J19: S2001 | K19: 2001 | L19: lieyanjian_timeline_TD | M19: 1 | N19: 1 | O19: 3 | P19: 360;48 | Q19: 1 | R19: 102 | S19: 3 | U19: 360 | V19: 48
A20: 20013 | C20: 130 | F20: 烈焰斩 | G20: 向前方发出1柄剑，对敌人造成{0}%火系伤害，并有{1}%的概率施加1层灼热 | H20: 2 | I20: icon_skill_10001 | J20: S2001 | K20: 2001 | L20: lieyanjian_timeline_TD | M20: 1 | N20: 1 | O20: 4 | P20: 360;48 | Q20: 1 | R20: 102 | S20: 4 | U20: 360 | V20: 48
A21: 20014 | C21: 140 | F21: 烈焰斩 | G21: 向前方发出1柄剑，对敌人造成{0}%火系伤害，并有{1}%的概率施加1层灼热 | H21: 2 | I21: icon_skill_10001 | J21: S2001 | K21: 2001 | L21: lieyanjian_timeline_TD | M21: 1 | N21: 1 | O21: 5 | P21: 360;48 | Q21: 1 | R21: 102 | S21: 5 | U21: 360 | V21: 48
A22: 20015 | C22: 150 | F22: 烈焰斩 | G22: 向前方发出1柄剑，对敌人造成{0}%火系伤害，并有{1}%的概率施加1层灼热 | H22: 2 | I22: icon_skill_10001 | J22: S2001 | K22: 2001 | L22: lieyanjian_timeline_TD | M22: 1 | N22: 1 | O22: 6 | P22: 360;48 | Q22: 1 | R22: 102 | S22: 6 | U22: 360 | V22: 48
A23: 20016 | C23: 160 | F23: 烈焰斩 | G23: 向前方发出1柄剑，对敌人造成{0}%火系伤害，并有{1}%的概率施加1层灼热 | H23: 2 | I23: icon_skill_10001 | J23: S2001 | K23: 2001 | L23: lieyanjian_timeline_TD | M23: 1 | N23: 1 | O23: 7 | P23: 360;48 | Q23: 1 | R23: 102 | S23: 7 | U23: 360 | V23: 48
A24: 20017 | C24: 170 | F24: 烈焰斩 | G24: 向前方发出1柄剑，对敌人造成{0}%火系伤害，并有{1}%的概率施加1层灼热 | H24: 2 | I24: icon_skill_10001 | J24: S2001 | K24: 2001 | L24: lieyanjian_timeline_TD | M24: 1 | N24: 1 | O24: 8 | P24: 360;48 | Q24: 1 | R24: 102 | S24: 8 | U24: 360 | V24: 48
A25: 20018 | C25: 180 | F25: 烈焰斩 | G25: 向前方发出1柄剑，对敌人造成{0}%火系伤害，并有{1}%的概率施加1层灼热 | H25: 2 | I25: icon_skill_10001 | J25: S2001 | K25: 2001 | L25: lieyanjian_timeline_TD | M25: 1 | N25: 1 | O25: 9 | P25: 360;48 | Q25: 1 | R25: 102 | S25: 9 | U25: 360 | V25: 48
A26: 20019 | C26: 190 | F26: 烈焰斩 | G26: 向前方发出1柄剑，对敌人造成{0}%火系伤害，并有{1}%的概率施加1层灼热 | H26: 2 | I26: icon_skill_10001 | J26: S2001 | K26: 2001 | L26: lieyanjian_timeline_TD | M26: 1 | N26: 1 | O26: 10 | P26: 360;48 | Q26: 1 | R26: 102 | S26: 10 | U26: 360 | V26: 48
A28: =K28*10+O28-1 -> 11010 | C28: 100 | F28: 瘴影千丝术 | G28: 发出{0}条细细的毒针，每颗针对敌人照成{1}%金系伤害，每颗针有{2}%概率施加1层毒 | H28: 1 | I28: icon_skill_40001 | J28: =CONCATENATE("S",K28) -> S1101 | K28: 1101 | L28: duzhen_timeline_TD | M28: 1 | N28: 1 | O28: 1 | P28: =_xlfn.TEXTJOIN(";",1,U28:AA28) -> 2;180;24 | Q28: 2 | R28: 103 | S28: 1 | U28: 2 | V28: 180 | W28: 24
A29: =K29*10+O29-1 -> 11011 | C29: 110 | F29: 瘴影千丝术 | G29: 发出{0}条细细的毒针，每颗针对敌人照成{1}%金系伤害，每颗针有{2}%概率施加1层毒 | H29: 1 | I29: icon_skill_40001 | J29: =CONCATENATE("S",K29) -> S1101 | K29: 1101 | L29: duzhen_timeline_TD | M29: 1 | N29: 1 | O29: 2 | P29: =_xlfn.TEXTJOIN(";",1,U29:AA29) -> 2;180;24 | Q29: 2 | R29: 103 | S29: 2 | U29: 2 | V29: 180 | W29: 24
A30: 11012 | C30: 120 | F30: 瘴影千丝术 | G30: 发出{0}条细细的毒针，每颗针对敌人照成{1}%金系伤害，每颗针有{2}%概率施加1层毒 | H30: 1 | I30: icon_skill_40001 | J30: S1101 | K30: 1101 | L30: duzhen_timeline_TD | M30: 1 | N30: 1 | O30: 3 | P30: 2;180;24 | Q30: 2 | R30: 103 | S30: 3 | U30: 2 | V30: 180 | W30: 24
A31: 11013 | C31: 130 | F31: 瘴影千丝术 | G31: 发出{0}条细细的毒针，每颗针对敌人照成{1}%金系伤害，每颗针有{2}%概率施加1层毒 | H31: 1 | I31: icon_skill_40001 | J31: S1101 | K31: 1101 | L31: duzhen_timeline_TD | M31: 1 | N31: 1 | O31: 4 | P31: 2;180;24 | Q31: 2 | R31: 103 | S31: 4 | U31: 2 | V31: 180 | W31: 24
A32: 11014 | C32: 140 | F32: 瘴影千丝术 | G32: 发出{0}条细细的毒针，每颗针对敌人照成{1}%金系伤害，每颗针有{2}%概率施加1层毒 | H32: 1 | I32: icon_skill_40001 | J32: S1101 | K32: 1101 | L32: duzhen_timeline_TD | M32: 1 | N32: 1 | O32: 5 | P32: 2;180;24 | Q32: 2 | R32: 103 | S32: 5 | U32: 2 | V32: 180 | W32: 24
A33: 11015 | C33: 150 | F33: 瘴影千丝术 | G33: 发出{0}条细细的毒针，每颗针对敌人照成{1}%金系伤害，每颗针有{2}%概率施加1层毒 | H33: 1 | I33: icon_skill_40001 | J33: S1101 | K33: 1101 | L33: duzhen_timeline_TD | M33: 1 | N33: 1 | O33: 6 | P33: 2;180;24 | Q33: 2 | R33: 103 | S33: 6 | U33: 2 | V33: 180 | W33: 24
A34: 11016 | C34: 160 | F34: 瘴影千丝术 | G34: 发出{0}条细细的毒针，每颗针对敌人照成{1}%金系伤害，每颗针有{2}%概率施加1层毒 | H34: 1 | I34: icon_skill_40001 | J34: S1101 | K34: 1101 | L34: duzhen_timeline_TD | M34: 1 | N34: 1 | O34: 7 | P34: 2;180;24 | Q34: 2 | R34: 103 | S34: 7 | U34: 2 | V34: 180 | W34: 24
A35: 11017 | C35: 170 | F35: 瘴影千丝术 | G35: 发出{0}条细细的毒针，每颗针对敌人照成{1}%金系伤害，每颗针有{2}%概率施加1层毒 | H35: 1 | I35: icon_skill_40001 | J35: S1101 | K35: 1101 | L35: duzhen_timeline_TD | M35: 1 | N35: 1 | O35: 8 | P35: 2;180;24 | Q35: 2 | R35: 103 | S35: 8 | U35: 2 | V35: 180 | W35: 24
A36: 11018 | C36: 180 | F36: 瘴影千丝术 | G36: 发出{0}条细细的毒针，每颗针对敌人照成{1}%金系伤害，每颗针有{2}%概率施加1层毒 | H36: 1 | I36: icon_skill_40001 | J36: S1101 | K36: 1101 | L36: duzhen_timeline_TD | M36: 1 | N36: 1 | O36: 9 | P36: 2;180;24 | Q36: 2 | R36: 103 | S36: 9 | U36: 2 | V36: 180 | W36: 24
A37: 11019 | C37: 190 | F37: 瘴影千丝术 | G37: 发出{0}条细细的毒针，每颗针对敌人照成{1}%金系伤害，每颗针有{2}%概率施加1层毒 | H37: 1 | I37: icon_skill_40001 | J37: S1101 | K37: 1101 | L37: duzhen_timeline_TD | M37: 1 | N37: 1 | O37: 10 | P37: 2;180;24 | Q37: 2 | R37: 103 | S37: 10 | U37: 2 | V37: 180 | W37: 24
A39: =K39*10+O39-1 -> 12010 | C39: 100 | F39: 雾隐千流法 | G39: 身体散发出一团迷雾。从迷雾中飞出{0}个冰球，每个冰球对敌人照成{1}%伤害，并有{2}%概率施加1层寒气 | H39: 4 | I39: icon_skill_40005 | J39: =CONCATENATE("S",K39) -> S1201 | K39: 1201 | L39: bingqiu_timeline_TD | M39: 1 | N39: 1 | O39: 1 | P39: =_xlfn.TEXTJOIN(";",1,U39:AA39) -> 3;120;16 | Q39: 2 | R39: 101 | S39: 1 | U39: 3 | V39: 120 | W39: 16
A40: =K40*10+O40-1 -> 12011 | C40: 110 | F40: 雾隐千流法 | G40: 身体散发出一团迷雾。从迷雾中飞出{0}个冰球，每个冰球对敌人照成{1}%伤害，并有{2}%概率施加1层寒气 | H40: 4 | I40: icon_skill_40005 | J40: =CONCATENATE("S",K40) -> S1201 | K40: 1201 | L40: bingqiu_timeline_TD | M40: 1 | N40: 1 | O40: 2 | P40: =_xlfn.TEXTJOIN(";",1,U40:AA40) -> 3;120;16 | Q40: 2 | R40: 101 | S40: 2 | U40: 3 | V40: 120 | W40: 16
A41: 12012 | C41: 120 | F41: 雾隐千流法 | G41: 身体散发出一团迷雾。从迷雾中飞出{0}个冰球，每个冰球对敌人照成{1}%伤害，并有{2}%概率施加1层寒气 | H41: 4 | I41: icon_skill_40005 | J41: S1201 | K41: 1201 | L41: bingqiu_timeline_TD | M41: 1 | N41: 1 | O41: 3 | P41: 3;120;16 | Q41: 2 | R41: 101 | S41: 3 | U41: 3 | V41: 120 | W41: 16
A42: 12013 | C42: 130 | F42: 雾隐千流法 | G42: 身体散发出一团迷雾。从迷雾中飞出{0}个冰球，每个冰球对敌人照成{1}%伤害，并有{2}%概率施加1层寒气 | H42: 4 | I42: icon_skill_40005 | J42: S1201 | K42: 1201 | L42: bingqiu_timeline_TD | M42: 1 | N42: 1 | O42: 4 | P42: 3;120;16 | Q42: 2 | R42: 101 | S42: 4 | U42: 3 | V42: 120 | W42: 16
A43: 12014 | C43: 140 | F43: 雾隐千流法 | G43: 身体散发出一团迷雾。从迷雾中飞出{0}个冰球，每个冰球对敌人照成{1}%伤害，并有{2}%概率施加1层寒气 | H43: 4 | I43: icon_skill_40005 | J43: S1201 | K43: 1201 | L43: bingqiu_timeline_TD | M43: 1 | N43: 1 | O43: 5 | P43: 3;120;16 | Q43: 2 | R43: 101 | S43: 5 | U43: 3 | V43: 120 | W43: 16
A44: 12015 | C44: 150 | F44: 雾隐千流法 | G44: 身体散发出一团迷雾。从迷雾中飞出{0}个冰球，每个冰球对敌人照成{1}%伤害，并有{2}%概率施加1层寒气 | H44: 4 | I44: icon_skill_40005 | J44: S1201 | K44: 1201 | L44: bingqiu_timeline_TD | M44: 1 | N44: 1 | O44: 6 | P44: 3;120;16 | Q44: 2 | R44: 101 | S44: 6 | U44: 3 | V44: 120 | W44: 16
A45: 12016 | C45: 160 | F45: 雾隐千流法 | G45: 身体散发出一团迷雾。从迷雾中飞出{0}个冰球，每个冰球对敌人照成{1}%伤害，并有{2}%概率施加1层寒气 | H45: 4 | I45: icon_skill_40005 | J45: S1201 | K45: 1201 | L45: bingqiu_timeline_TD | M45: 1 | N45: 1 | O45: 7 | P45: 3;120;16 | Q45: 2 | R45: 101 | S45: 7 | U45: 3 | V45: 120 | W45: 16
A46: 12017 | C46: 170 | F46: 雾隐千流法 | G46: 身体散发出一团迷雾。从迷雾中飞出{0}个冰球，每个冰球对敌人照成{1}%伤害，并有{2}%概率施加1层寒气 | H46: 4 | I46: icon_skill_40005 | J46: S1201 | K46: 1201 | L46: bingqiu_timeline_TD | M46: 1 | N46: 1 | O46: 8 | P46: 3;120;16 | Q46: 2 | R46: 101 | S46: 8 | U46: 3 | V46: 120 | W46: 16
A47: 12018 | C47: 180 | F47: 雾隐千流法 | G47: 身体散发出一团迷雾。从迷雾中飞出{0}个冰球，每个冰球对敌人照成{1}%伤害，并有{2}%概率施加1层寒气 | H47: 4 | I47: icon_skill_40005 | J47: S1201 | K47: 1201 | L47: bingqiu_timeline_TD | M47: 1 | N47: 1 | O47: 9 | P47: 3;120;16 | Q47: 2 | R47: 101 | S47: 9 | U47: 3 | V47: 120 | W47: 16
A48: 12019 | C48: 190 | F48: 雾隐千流法 | G48: 身体散发出一团迷雾。从迷雾中飞出{0}个冰球，每个冰球对敌人照成{1}%伤害，并有{2}%概率施加1层寒气 | H48: 4 | I48: icon_skill_40005 | J48: S1201 | K48: 1201 | L48: bingqiu_timeline_TD | M48: 1 | N48: 1 | O48: 10 | P48: 3;120;16 | Q48: 2 | R48: 101 | S48: 10 | U48: 3 | V48: 120 | W48: 16
A50: =K50*10+O50-1 -> 13010 | C50: 100 | F50: 碧落幽冥劲 | G50: 发出{0}道寒气冰锥，对敌人照成{1}%伤害，每到冰锥有{2}%概率对敌人施加1层寒气 | H50: 4 | I50: icon_skill_40002 | J50: =CONCATENATE("S",K50) -> S1301 | K50: 1301 | L50: bingzhui_timeline_TD | M50: 1 | N50: 1 | O50: 1 | P50: =_xlfn.TEXTJOIN(";",1,U50:AA50) -> 3;120;16 | Q50: 2 | R50: 102 | S50: 1 | U50: 3 | V50: 120 | W50: 16
A51: =K51*10+O51-1 -> 13011 | C51: 110 | F51: 碧落幽冥劲 | G51: 发出{0}道寒气冰锥，对敌人照成{1}%伤害，每到冰锥有{2}%概率对敌人施加1层寒气 | H51: 4 | I51: icon_skill_40002 | J51: =CONCATENATE("S",K51) -> S1301 | K51: 1301 | L51: bingzhui_timeline_TD | M51: 1 | N51: 1 | O51: 2 | P51: =_xlfn.TEXTJOIN(";",1,U51:AA51) -> 3;120;16 | Q51: 2 | R51: 102 | S51: 2 | U51: 3 | V51: 120 | W51: 16
A52: 13012 | C52: 120 | F52: 碧落幽冥劲 | G52: 发出{0}道寒气冰锥，对敌人照成{1}%伤害，每到冰锥有{2}%概率对敌人施加1层寒气 | H52: 4 | I52: icon_skill_40002 | J52: S1301 | K52: 1301 | L52: bingzhui_timeline_TD | M52: 1 | N52: 1 | O52: 3 | P52: 3;120;16 | Q52: 2 | R52: 102 | S52: 3 | U52: 3 | V52: 120 | W52: 16
A53: 13013 | C53: 130 | F53: 碧落幽冥劲 | G53: 发出{0}道寒气冰锥，对敌人照成{1}%伤害，每到冰锥有{2}%概率对敌人施加1层寒气 | H53: 4 | I53: icon_skill_40002 | J53: S1301 | K53: 1301 | L53: bingzhui_timeline_TD | M53: 1 | N53: 1 | O53: 4 | P53: 3;120;16 | Q53: 2 | R53: 102 | S53: 4 | U53: 3 | V53: 120 | W53: 16
A54: 13014 | C54: 140 | F54: 碧落幽冥劲 | G54: 发出{0}道寒气冰锥，对敌人照成{1}%伤害，每到冰锥有{2}%概率对敌人施加1层寒气 | H54: 4 | I54: icon_skill_40002 | J54: S1301 | K54: 1301 | L54: bingzhui_timeline_TD | M54: 1 | N54: 1 | O54: 5 | P54: 3;120;16 | Q54: 2 | R54: 102 | S54: 5 | U54: 3 | V54: 120 | W54: 16
A55: 13015 | C55: 150 | F55: 碧落幽冥劲 | G55: 发出{0}道寒气冰锥，对敌人照成{1}%伤害，每到冰锥有{2}%概率对敌人施加1层寒气 | H55: 4 | I55: icon_skill_40002 | J55: S1301 | K55: 1301 | L55: bingzhui_timeline_TD | M55: 1 | N55: 1 | O55: 6 | P55: 3;120;16 | Q55: 2 | R55: 102 | S55: 6 | U55: 3 | V55: 120 | W55: 16
A56: 13016 | C56: 160 | F56: 碧落幽冥劲 | G56: 发出{0}道寒气冰锥，对敌人照成{1}%伤害，每到冰锥有{2}%概率对敌人施加1层寒气 | H56: 4 | I56: icon_skill_40002 | J56: S1301 | K56: 1301 | L56: bingzhui_timeline_TD | M56: 1 | N56: 1 | O56: 7 | P56: 3;120;16 | Q56: 2 | R56: 102 | S56: 7 | U56: 3 | V56: 120 | W56: 16
A57: 13017 | C57: 170 | F57: 碧落幽冥劲 | G57: 发出{0}道寒气冰锥，对敌人照成{1}%伤害，每到冰锥有{2}%概率对敌人施加1层寒气 | H57: 4 | I57: icon_skill_40002 | J57: S1301 | K57: 1301 | L57: bingzhui_timeline_TD | M57: 1 | N57: 1 | O57: 8 | P57: 3;120;16 | Q57: 2 | R57: 102 | S57: 8 | U57: 3 | V57: 120 | W57: 16
A58: 13018 | C58: 180 | F58: 碧落幽冥劲 | G58: 发出{0}道寒气冰锥，对敌人照成{1}%伤害，每到冰锥有{2}%概率对敌人施加1层寒气 | H58: 4 | I58: icon_skill_40002 | J58: S1301 | K58: 1301 | L58: bingzhui_timeline_TD | M58: 1 | N58: 1 | O58: 9 | P58: 3;120;16 | Q58: 2 | R58: 102 | S58: 9 | U58: 3 | V58: 120 | W58: 16
A59: 13019 | C59: 190 | F59: 碧落幽冥劲 | G59: 发出{0}道寒气冰锥，对敌人照成{1}%伤害，每到冰锥有{2}%概率对敌人施加1层寒气 | H59: 4 | I59: icon_skill_40002 | J59: S1301 | K59: 1301 | L59: bingzhui_timeline_TD | M59: 1 | N59: 1 | O59: 10 | P59: 3;120;16 | Q59: 2 | R59: 102 | S59: 10 | U59: 3 | V59: 120 | W59: 16
B61: 功法强化效果区域
A62: =K62*10+O62-1 -> 5010010 | C62: 100 | F62: 法宝秘籍 | G62: 法宝秘籍：后方槽位第一个技能在击中目前时为法宝提供{0}%充能 | H62: 0 | I62: icon_skill_30005 | J62: =CONCATENATE("S",K62) -> S501001 | K62: 501001 | M62: 1 | N62: 2 | O62: 1 | P62: =_xlfn.TEXTJOIN(";",1,U62:AA62) -> 15 | Q62: 1 | R62: 103 | S62: 1 | U62: 15
A63: =K63*10+O63-1 -> 5010011 | C63: 110 | F63: 法宝秘籍 | G63: 法宝秘籍：后方槽位第一个技能在击中目前时为法宝提供{0}%充能 | H63: 0 | I63: icon_skill_30005 | J63: =CONCATENATE("S",K63) -> S501001 | K63: 501001 | M63: 1 | N63: 2 | O63: 2 | P63: =_xlfn.TEXTJOIN(";",1,U63:AA63) -> 15 | Q63: 1 | R63: 103 | S63: 2 | U63: 15
A64: 5010012 | C64: 120 | F64: 法宝秘籍 | G64: 法宝秘籍：后方槽位第一个技能在击中目前时为法宝提供{0}%充能 | H64: 0 | I64: icon_skill_30005 | J64: S501001 | K64: 501001 | M64: 1 | N64: 2 | O64: 3 | P64: 15 | Q64: 1 | R64: 103 | S64: 3 | U64: 15
A65: 5010013 | C65: 130 | F65: 法宝秘籍 | G65: 法宝秘籍：后方槽位第一个技能在击中目前时为法宝提供{0}%充能 | H65: 0 | I65: icon_skill_30005 | J65: S501001 | K65: 501001 | M65: 1 | N65: 2 | O65: 4 | P65: 15 | Q65: 1 | R65: 103 | S65: 4 | U65: 15
A66: 5010014 | C66: 140 | F66: 法宝秘籍 | G66: 法宝秘籍：后方槽位第一个技能在击中目前时为法宝提供{0}%充能 | H66: 0 | I66: icon_skill_30005 | J66: S501001 | K66: 501001 | M66: 1 | N66: 2 | O66: 5 | P66: 15 | Q66: 1 | R66: 103 | S66: 5 | U66: 15
A67: 5010015 | C67: 150 | F67: 法宝秘籍 | G67: 法宝秘籍：后方槽位第一个技能在击中目前时为法宝提供{0}%充能 | H67: 0 | I67: icon_skill_30005 | J67: S501001 | K67: 501001 | M67: 1 | N67: 2 | O67: 6 | P67: 15 | Q67: 1 | R67: 103 | S67: 6 | U67: 15
A68: 5010016 | C68: 160 | F68: 法宝秘籍 | G68: 法宝秘籍：后方槽位第一个技能在击中目前时为法宝提供{0}%充能 | H68: 0 | I68: icon_skill_30005 | J68: S501001 | K68: 501001 | M68: 1 | N68: 2 | O68: 7 | P68: 15 | Q68: 1 | R68: 103 | S68: 7 | U68: 15
A69: 5010017 | C69: 170 | F69: 法宝秘籍 | G69: 法宝秘籍：后方槽位第一个技能在击中目前时为法宝提供{0}%充能 | H69: 0 | I69: icon_skill_30005 | J69: S501001 | K69: 501001 | M69: 1 | N69: 2 | O69: 8 | P69: 15 | Q69: 1 | R69: 103 | S69: 8 | U69: 15
A70: 5010018 | C70: 180 | F70: 法宝秘籍 | G70: 法宝秘籍：后方槽位第一个技能在击中目前时为法宝提供{0}%充能 | H70: 0 | I70: icon_skill_30005 | J70: S501001 | K70: 501001 | M70: 1 | N70: 2 | O70: 9 | P70: 15 | Q70: 1 | R70: 103 | S70: 9 | U70: 15
A71: 5010019 | C71: 190 | F71: 法宝秘籍 | G71: 法宝秘籍：后方槽位第一个技能在击中目前时为法宝提供{0}%充能 | H71: 0 | I71: icon_skill_30005 | J71: S501001 | K71: 501001 | M71: 1 | N71: 2 | O71: 10 | P71: 15 | Q71: 1 | R71: 103 | S71: 10 | U71: 15
A73: =K73*10+O73-1 -> 5011010 | C73: 100 | F73: 双生面具 | G73: 前后方法宝如果相生则双生效果增强{0}%，（具体效果值取决于技能） | H73: 0 | I73: icon_skill_20004 | J73: =CONCATENATE("S",K73) -> S501101 | K73: 501101 | M73: 1 | N73: 2 | O73: 1 | P73: 15 | Q73: 1 | R73: 101 | S73: 1
A74: =K74*10+O74-1 -> 5011011 | C74: 110 | F74: 双生面具 | G74: 前后方法宝如果相生则双生效果增强{0}%，（具体效果值取决于技能） | H74: 0 | I74: icon_skill_20004 | J74: =CONCATENATE("S",K74) -> S501101 | K74: 501101 | M74: 1 | N74: 2 | O74: 2 | P74: 15 | Q74: 1 | R74: 101 | S74: 2
A75: 5011012 | C75: 120 | F75: 双生面具 | G75: 前后方法宝如果相生则双生效果增强{0}%，（具体效果值取决于技能） | H75: 0 | I75: icon_skill_20004 | J75: S501101 | K75: 501101 | M75: 1 | N75: 2 | O75: 3 | P75: 15 | Q75: 1 | R75: 101 | S75: 3
A76: 5011013 | C76: 130 | F76: 双生面具 | G76: 前后方法宝如果相生则双生效果增强{0}%，（具体效果值取决于技能） | H76: 0 | I76: icon_skill_20004 | J76: S501101 | K76: 501101 | M76: 1 | N76: 2 | O76: 4 | P76: 15 | Q76: 1 | R76: 101 | S76: 4
A77: 5011014 | C77: 140 | F77: 双生面具 | G77: 前后方法宝如果相生则双生效果增强{0}%，（具体效果值取决于技能） | H77: 0 | I77: icon_skill_20004 | J77: S501101 | K77: 501101 | M77: 1 | N77: 2 | O77: 5 | P77: 15 | Q77: 1 | R77: 101 | S77: 5
A78: 5011015 | C78: 150 | F78: 双生面具 | G78: 前后方法宝如果相生则双生效果增强{0}%，（具体效果值取决于技能） | H78: 0 | I78: icon_skill_20004 | J78: S501101 | K78: 501101 | M78: 1 | N78: 2 | O78: 6 | P78: 15 | Q78: 1 | R78: 101 | S78: 6
A79: 5011016 | C79: 160 | F79: 双生面具 | G79: 前后方法宝如果相生则双生效果增强{0}%，（具体效果值取决于技能） | H79: 0 | I79: icon_skill_20004 | J79: S501101 | K79: 501101 | M79: 1 | N79: 2 | O79: 7 | P79: 15 | Q79: 1 | R79: 101 | S79: 7
A80: 5011017 | C80: 170 | F80: 双生面具 | G80: 前后方法宝如果相生则双生效果增强{0}%，（具体效果值取决于技能） | H80: 0 | I80: icon_skill_20004 | J80: S501101 | K80: 501101 | M80: 1 | N80: 2 | O80: 8 | P80: 15 | Q80: 1 | R80: 101 | S80: 8
A81: 5011018 | C81: 180 | F81: 双生面具 | G81: 前后方法宝如果相生则双生效果增强{0}%，（具体效果值取决于技能） | H81: 0 | I81: icon_skill_20004 | J81: S501101 | K81: 501101 | M81: 1 | N81: 2 | O81: 9 | P81: 15 | Q81: 1 | R81: 101 | S81: 9
A82: 5011019 | C82: 190 | F82: 双生面具 | G82: 前后方法宝如果相生则双生效果增强{0}%，（具体效果值取决于技能） | H82: 0 | I82: icon_skill_20004 | J82: S501101 | K82: 501101 | M82: 1 | N82: 2 | O82: 10 | P82: 15 | Q82: 1 | R82: 101 | S82: 10
A84: =K84*10+O84-1 -> 5012010 | C84: 100 | F84: 火灵丹 | G84: 每层经过火经脉时使火系功法伤害提升{0}%，最多叠加{1}层 | H84: 0 | I84: icon_skill_10002 | J84: =CONCATENATE("S",K84) -> S501201 | K84: 501201 | M84: 1 | N84: 2 | O84: 1 | P84: 10;10 | Q84: 1 | R84: 102 | S84: 1
A85: =K85*10+O85-1 -> 5012011 | C85: 110 | F85: 火灵丹 | G85: 每层经过火经脉时使火系功法伤害提升{0}%，最多叠加{1}层 | H85: 0 | I85: icon_skill_10002 | J85: =CONCATENATE("S",K85) -> S501201 | K85: 501201 | M85: 1 | N85: 2 | O85: 2 | P85: 10;10 | Q85: 1 | R85: 102 | S85: 2
A86: 5012012 | C86: 120 | F86: 火灵丹 | G86: 每层经过火经脉时使火系功法伤害提升{0}%，最多叠加{1}层 | H86: 0 | I86: icon_skill_10002 | J86: S501201 | K86: 501201 | M86: 1 | N86: 2 | O86: 3 | P86: 10;10 | Q86: 1 | R86: 102 | S86: 3
A87: 5012013 | C87: 130 | F87: 火灵丹 | G87: 每层经过火经脉时使火系功法伤害提升{0}%，最多叠加{1}层 | H87: 0 | I87: icon_skill_10002 | J87: S501201 | K87: 501201 | M87: 1 | N87: 2 | O87: 4 | P87: 10;10 | Q87: 1 | R87: 102 | S87: 4
A88: 5012014 | C88: 140 | F88: 火灵丹 | G88: 每层经过火经脉时使火系功法伤害提升{0}%，最多叠加{1}层 | H88: 0 | I88: icon_skill_10002 | J88: S501201 | K88: 501201 | M88: 1 | N88: 2 | O88: 5 | P88: 10;10 | Q88: 1 | R88: 102 | S88: 5
A89: 5012015 | C89: 150 | F89: 火灵丹 | G89: 每层经过火经脉时使火系功法伤害提升{0}%，最多叠加{1}层 | H89: 0 | I89: icon_skill_10002 | J89: S501201 | K89: 501201 | M89: 1 | N89: 2 | O89: 6 | P89: 10;10 | Q89: 1 | R89: 102 | S89: 6
A90: 5012016 | C90: 160 | F90: 火灵丹 | G90: 每层经过火经脉时使火系功法伤害提升{0}%，最多叠加{1}层 | H90: 0 | I90: icon_skill_10002 | J90: S501201 | K90: 501201 | M90: 1 | N90: 2 | O90: 7 | P90: 10;10 | Q90: 1 | R90: 102 | S90: 7
A91: 5012017 | C91: 170 | F91: 火灵丹 | G91: 每层经过火经脉时使火系功法伤害提升{0}%，最多叠加{1}层 | H91: 0 | I91: icon_skill_10002 | J91: S501201 | K91: 501201 | M91: 1 | N91: 2 | O91: 8 | P91: 10;10 | Q91: 1 | R91: 102 | S91: 8
A92: 5012018 | C92: 180 | F92: 火灵丹 | G92: 每层经过火经脉时使火系功法伤害提升{0}%，最多叠加{1}层 | H92: 0 | I92: icon_skill_10002 | J92: S501201 | K92: 501201 | M92: 1 | N92: 2 | O92: 9 | P92: 10;10 | Q92: 1 | R92: 102 | S92: 9
A93: 5012019 | C93: 190 | F93: 火灵丹 | G93: 每层经过火经脉时使火系功法伤害提升{0}%，最多叠加{1}层 | H93: 0 | I93: icon_skill_10002 | J93: S501201 | K93: 501201 | M93: 1 | N93: 2 | O93: 10 | P93: 10;10 | Q93: 1 | R93: 102 | S93: 10
A95: =K95*10+O95-1 -> 5013010 | C95: 100 | F95: 巨大化 | G95: 后方槽位第一个技能体型巨大化，且在对碰中受到伤害减少{0}% | H95: 0 | I95: icon_skill_20002 | J95: =CONCATENATE("S",K95) -> S501301 | K95: 501301 | M95: 1 | N95: 2 | O95: 1 | P95: 15 | Q95: 1 | R95: 103 | S95: 1
A96: =K96*10+O96-1 -> 5013011 | C96: 110 | F96: 巨大化 | G96: 后方槽位第一个技能体型巨大化，且在对碰中受到伤害减少{0}% | H96: 0 | I96: icon_skill_20002 | J96: =CONCATENATE("S",K96) -> S501301 | K96: 501301 | M96: 1 | N96: 2 | O96: 2 | P96: 15 | Q96: 1 | R96: 103 | S96: 2
A97: 5013012 | C97: 120 | F97: 巨大化 | G97: 后方槽位第一个技能体型巨大化，且在对碰中受到伤害减少{0}% | H97: 0 | I97: icon_skill_20002 | J97: S501301 | K97: 501301 | M97: 1 | N97: 2 | O97: 3 | P97: 15 | Q97: 1 | R97: 103 | S97: 3
A98: 5013013 | C98: 130 | F98: 巨大化 | G98: 后方槽位第一个技能体型巨大化，且在对碰中受到伤害减少{0}% | H98: 0 | I98: icon_skill_20002 | J98: S501301 | K98: 501301 | M98: 1 | N98: 2 | O98: 4 | P98: 15 | Q98: 1 | R98: 103 | S98: 4
A99: 5013014 | C99: 140 | F99: 巨大化 | G99: 后方槽位第一个技能体型巨大化，且在对碰中受到伤害减少{0}% | H99: 0 | I99: icon_skill_20002 | J99: S501301 | K99: 501301 | M99: 1 | N99: 2 | O99: 5 | P99: 15 | Q99: 1 | R99: 103 | S99: 5
A100: 5013015 | C100: 150 | F100: 巨大化 | G100: 后方槽位第一个技能体型巨大化，且在对碰中受到伤害减少{0}% | H100: 0 | I100: icon_skill_20002 | J100: S501301 | K100: 501301 | M100: 1 | N100: 2 | O100: 6 | P100: 15 | Q100: 1 | R100: 103 | S100: 6
A101: 5013016 | C101: 160 | F101: 巨大化 | G101: 后方槽位第一个技能体型巨大化，且在对碰中受到伤害减少{0}% | H101: 0 | I101: icon_skill_20002 | J101: S501301 | K101: 501301 | M101: 1 | N101: 2 | O101: 7 | P101: 15 | Q101: 1 | R101: 103 | S101: 7
A102: 5013017 | C102: 170 | F102: 巨大化 | G102: 后方槽位第一个技能体型巨大化，且在对碰中受到伤害减少{0}% | H102: 0 | I102: icon_skill_20002 | J102: S501301 | K102: 501301 | M102: 1 | N102: 2 | O102: 8 | P102: 15 | Q102: 1 | R102: 103 | S102: 8
A103: 5013018 | C103: 180 | F103: 巨大化 | G103: 后方槽位第一个技能体型巨大化，且在对碰中受到伤害减少{0}% | H103: 0 | I103: icon_skill_20002 | J103: S501301 | K103: 501301 | M103: 1 | N103: 2 | O103: 9 | P103: 15 | Q103: 1 | R103: 103 | S103: 9
A104: 5013019 | C104: 190 | F104: 巨大化 | G104: 后方槽位第一个技能体型巨大化，且在对碰中受到伤害减少{0}% | H104: 0 | I104: icon_skill_20002 | J104: S501301 | K104: 501301 | M104: 1 | N104: 2 | O104: 10 | P104: 15 | Q104: 1 | R104: 103 | S104: 10
A106: =K106*10+O106-1 -> 5014010 | C106: 100 | F106: 极速齿轮 | G106: 后槽位技能在催动时获得转盘加速{0}%,持续{1}秒 | H106: 0 | I106: icon_skill_10004 | J106: =CONCATENATE("S",K106) -> S501401 | K106: 501401 | M106: 1 | N106: 2 | O106: 1 | P106: 15;6 | Q106: 1 | R106: 101 | S106: 1
A107: =K107*10+O107-1 -> 5014011 | C107: 110 | F107: 极速齿轮 | G107: 后槽位技能在催动时获得转盘加速{0}%,持续{1}秒 | H107: 0 | I107: icon_skill_10004 | J107: =CONCATENATE("S",K107) -> S501401 | K107: 501401 | M107: 1 | N107: 2 | O107: 2 | P107: 15;6 | Q107: 1 | R107: 101 | S107: 2
A108: 5014012 | C108: 120 | F108: 极速齿轮 | G108: 后槽位技能在催动时获得转盘加速{0}%,持续{1}秒 | H108: 0 | I108: icon_skill_10004 | J108: S501401 | K108: 501401 | M108: 1 | N108: 2 | O108: 3 | P108: 15;6 | Q108: 1 | R108: 101 | S108: 3
A109: 5014013 | C109: 130 | F109: 极速齿轮 | G109: 后槽位技能在催动时获得转盘加速{0}%,持续{1}秒 | H109: 0 | I109: icon_skill_10004 | J109: S501401 | K109: 501401 | M109: 1 | N109: 2 | O109: 4 | P109: 15;6 | Q109: 1 | R109: 101 | S109: 4
A110: 5014014 | C110: 140 | F110: 极速齿轮 | G110: 后槽位技能在催动时获得转盘加速{0}%,持续{1}秒 | H110: 0 | I110: icon_skill_10004 | J110: S501401 | K110: 501401 | M110: 1 | N110: 2 | O110: 5 | P110: 15;6 | Q110: 1 | R110: 101 | S110: 5
A111: 5014015 | C111: 150 | F111: 极速齿轮 | G111: 后槽位技能在催动时获得转盘加速{0}%,持续{1}秒 | H111: 0 | I111: icon_skill_10004 | J111: S501401 | K111: 501401 | M111: 1 | N111: 2 | O111: 6 | P111: 15;6 | Q111: 1 | R111: 101 | S111: 6
A112: 5014016 | C112: 160 | F112: 极速齿轮 | G112: 后槽位技能在催动时获得转盘加速{0}%,持续{1}秒 | H112: 0 | I112: icon_skill_10004 | J112: S501401 | K112: 501401 | M112: 1 | N112: 2 | O112: 7 | P112: 15;6 | Q112: 1 | R112: 101 | S112: 7
A113: 5014017 | C113: 170 | F113: 极速齿轮 | G113: 后槽位技能在催动时获得转盘加速{0}%,持续{1}秒 | H113: 0 | I113: icon_skill_10004 | J113: S501401 | K113: 501401 | M113: 1 | N113: 2 | O113: 8 | P113: 15;6 | Q113: 1 | R113: 101 | S113: 8
A114: 5014018 | C114: 180 | F114: 极速齿轮 | G114: 后槽位技能在催动时获得转盘加速{0}%,持续{1}秒 | H114: 0 | I114: icon_skill_10004 | J114: S501401 | K114: 501401 | M114: 1 | N114: 2 | O114: 9 | P114: 15;6 | Q114: 1 | R114: 101 | S114: 9
A115: 5014019 | C115: 190 | F115: 极速齿轮 | G115: 后槽位技能在催动时获得转盘加速{0}%,持续{1}秒 | H115: 0 | I115: icon_skill_10004 | J115: S501401 | K115: 501401 | M115: 1 | N115: 2 | O115: 10 | P115: 15;6 | Q115: 1 | R115: 101 | S115: 10
A117: =K117*10+O117-1 -> 5015010 | C117: 100 | F117: 崩脉决 | G117: 前方功法照成伤害时有{0}%概率施加一层对应属性的伤势 | H117: 0 | I117: icon_skill_20001 | J117: =CONCATENATE("S",K117) -> S501501 | K117: 501501 | M117: 1 | N117: 2 | O117: 1 | P117: 30 | Q117: 1 | R117: 102 | S117: 1
A118: =K118*10+O118-1 -> 5015011 | C118: 110 | F118: 崩脉决 | G118: 前方功法照成伤害时有{0}%概率施加一层对应属性的伤势 | H118: 0 | I118: icon_skill_20001 | J118: =CONCATENATE("S",K118) -> S501501 | K118: 501501 | M118: 1 | N118: 2 | O118: 2 | P118: 30 | Q118: 1 | R118: 102 | S118: 2
A119: 5015012 | C119: 120 | F119: 崩脉决 | G119: 前方功法照成伤害时有{0}%概率施加一层对应属性的伤势 | H119: 0 | I119: icon_skill_20001 | J119: S501501 | K119: 501501 | M119: 1 | N119: 2 | O119: 3 | P119: 30 | Q119: 1 | R119: 102 | S119: 3
A120: 5015013 | C120: 130 | F120: 崩脉决 | G120: 前方功法照成伤害时有{0}%概率施加一层对应属性的伤势 | H120: 0 | I120: icon_skill_20001 | J120: S501501 | K120: 501501 | M120: 1 | N120: 2 | O120: 4 | P120: 30 | Q120: 1 | R120: 102 | S120: 4
A121: 5015014 | C121: 140 | F121: 崩脉决 | G121: 前方功法照成伤害时有{0}%概率施加一层对应属性的伤势 | H121: 0 | I121: icon_skill_20001 | J121: S501501 | K121: 501501 | M121: 1 | N121: 2 | O121: 5 | P121: 30 | Q121: 1 | R121: 102 | S121: 5
A122: 5015015 | C122: 150 | F122: 崩脉决 | G122: 前方功法照成伤害时有{0}%概率施加一层对应属性的伤势 | H122: 0 | I122: icon_skill_20001 | J122: S501501 | K122: 501501 | M122: 1 | N122: 2 | O122: 6 | P122: 30 | Q122: 1 | R122: 102 | S122: 6
A123: 5015016 | C123: 160 | F123: 崩脉决 | G123: 前方功法照成伤害时有{0}%概率施加一层对应属性的伤势 | H123: 0 | I123: icon_skill_20001 | J123: S501501 | K123: 501501 | M123: 1 | N123: 2 | O123: 7 | P123: 30 | Q123: 1 | R123: 102 | S123: 7
A124: 5015017 | C124: 170 | F124: 崩脉决 | G124: 前方功法照成伤害时有{0}%概率施加一层对应属性的伤势 | H124: 0 | I124: icon_skill_20001 | J124: S501501 | K124: 501501 | M124: 1 | N124: 2 | O124: 8 | P124: 30 | Q124: 1 | R124: 102 | S124: 8
A125: 5015018 | C125: 180 | F125: 崩脉决 | G125: 前方功法照成伤害时有{0}%概率施加一层对应属性的伤势 | H125: 0 | I125: icon_skill_20001 | J125: S501501 | K125: 501501 | M125: 1 | N125: 2 | O125: 9 | P125: 30 | Q125: 1 | R125: 102 | S125: 9
A126: 5015019 | C126: 190 | F126: 崩脉决 | G126: 前方功法照成伤害时有{0}%概率施加一层对应属性的伤势 | H126: 0 | I126: icon_skill_20001 | J126: S501501 | K126: 501501 | M126: 1 | N126: 2 | O126: 10 | P126: 30 | Q126: 1 | R126: 102 | S126: 10
B128: 怪物功法区域
A129: 810011 | C129: 100 | F129: 怪物技能1 | H129: 1 | J129: S2001 | K129: 81001 | L129: gf_mozhan_timeline_TD | M129: 1 | N129: 1 | O129: 1 | P129: 100 | Q129: 0
A130: 820011 | C130: 100 | F130: 怪物技能1 | H130: 2 | J130: S2001 | K130: 82001 | L130: gf_mozhan_timeline_TD | M130: 1 | N130: 1 | O130: 1 | P130: 100 | Q130: 0
A131: 830011 | C131: 100 | F131: 怪物技能1 | H131: 8 | J131: S2001 | K131: 83001 | L131: gf_mozhan_timeline_TD | M131: 1 | N131: 1 | O131: 1 | P131: 100 | Q131: 0
A132: 840011 | C132: 100 | F132: 怪物技能1 | H132: 16 | J132: S2001 | K132: 84001 | L132: gf_mozhan_timeline_TD | M132: 1 | N132: 1 | O132: 1 | P132: 100 | Q132: 0
A133: 850011 | C133: 100 | F133: 怪物技能1 | H133: 1 | J133: S2001 | K133: 85001 | L133: gf_mozhan_timeline_TD | M133: 1 | N133: 1 | O133: 1 | P133: 100 | Q133: 0
A134: 890111 | C134: 100 | F134: boss第一个技能 | G134: 伤害很高）(前摇时间长)：很多剑从远处汇聚到boss周围，然后以一字行快速贯穿目标对目标照成{0}伤害，每命中目标肉体{1}次防御削减{2}%，目标肉体{3}次所有伤势+{4} ,如果目标上有剑毅，每丙剑消耗{5}层剑毅让敌人受到{6}额外的伤害 | H134: 1 | J134: S89011 | K134: 89011 | L134: BossSk1_timeline_TD | M134: 1 | N134: 1 | O134: 1 | P134: 50;5;1;10;1;1;20 | Q134: 0
A135: 890121 | C135: 100 | F135: boss第一个技能 | G135: （2转，防御型技能）：身体周围围绕多丙剑飞行，可以阻挡敌人的功法.抵挡{0}最大生命值的伤害 | H135: 1 | J135: S89012 | K135: 89012 | L135: BossSk2_timeline_TD | M135: 2 | N135: 1 | O135: 1 | P135: 10 | Q135: 0
A136: 890131 | C136: 100 | F136: boss第一个技能 | G136: 剑祖的攻击会让目标受到一层剑毅 | H136: 1 | J136: S89013 | K136: 89013 | M136: 1 | N136: 2 | O136: 1 | P136: 1 | Q136: 0
A137: 890141 | C137: 100 | F137: boss第一个技能 | G137: 发射2丙剑，对敌人照成{0}伤害 | H137: 1 | J137: S89014 | K137: 89014 | L137: BossSk4_timeline_TD | M137: 1 | N137: 1 | O137: 1 | P137: 100 | Q137: 0
A138: 890151 | C138: 100 | F138: boss第一个技能 | G138: 发射2丙剑，对敌人照成{0}伤害 | H138: 1 | J138: S89015 | K138: 89015 | L138: BossSk4_timeline_TD | M138: 1 | N138: 1 | O138: 1 | P138: 100 | Q138: 0
B139: 法宝区域
A140: =K140*10+O140-1 -> 9010010 | C140: 100 | F140: 法宝测试技能 | G140: 测试法宝功能脚本 | H140: 1 | I140: icon_skill_10003 | J140: =CONCATENATE("S",K140) -> S901001 | K140: 901001 | M140: 1 | N140: 3 | O140: 1 | P140: 100 | Q140: 1 | R140: 101 | S140: 1
A141: =K141*10+O141-1 -> 9010011 | C141: 110 | F141: 法宝测试技能 | G141: 测试法宝功能脚本 | H141: 1 | I141: icon_skill_10003 | J141: =CONCATENATE("S",K141) -> S901001 | K141: 901001 | M141: 1 | N141: 3 | O141: 2 | P141: 100 | Q141: 1 | R141: 101 | S141: 2
A142: 9010012 | C142: 120 | F142: 法宝测试技能 | G142: 测试法宝功能脚本 | H142: 1 | I142: icon_skill_10003 | J142: S901001 | K142: 901001 | M142: 1 | N142: 3 | O142: 3 | P142: 100 | Q142: 1 | R142: 101 | S142: 3
A143: 9010013 | C143: 130 | F143: 法宝测试技能 | G143: 测试法宝功能脚本 | H143: 1 | I143: icon_skill_10003 | J143: S901001 | K143: 901001 | M143: 1 | N143: 3 | O143: 4 | P143: 100 | Q143: 1 | R143: 101 | S143: 4
A144: 9010014 | C144: 140 | F144: 法宝测试技能 | G144: 测试法宝功能脚本 | H144: 1 | I144: icon_skill_10003 | J144: S901001 | K144: 901001 | M144: 1 | N144: 3 | O144: 5 | P144: 100 | Q144: 1 | R144: 101 | S144: 5
A145: 9010015 | C145: 150 | F145: 法宝测试技能 | G145: 测试法宝功能脚本 | H145: 1 | I145: icon_skill_10003 | J145: S901001 | K145: 901001 | M145: 1 | N145: 3 | O145: 6 | P145: 100 | Q145: 1 | R145: 101 | S145: 6
A146: 9010016 | C146: 160 | F146: 法宝测试技能 | G146: 测试法宝功能脚本 | H146: 1 | I146: icon_skill_10003 | J146: S901001 | K146: 901001 | M146: 1 | N146: 3 | O146: 7 | P146: 100 | Q146: 1 | R146: 101 | S146: 7
A147: 9010017 | C147: 170 | F147: 法宝测试技能 | G147: 测试法宝功能脚本 | H147: 1 | I147: icon_skill_10003 | J147: S901001 | K147: 901001 | M147: 1 | N147: 3 | O147: 8 | P147: 100 | Q147: 1 | R147: 101 | S147: 8
A148: 9010018 | C148: 180 | F148: 法宝测试技能 | G148: 测试法宝功能脚本 | H148: 1 | I148: icon_skill_10003 | J148: S901001 | K148: 901001 | M148: 1 | N148: 3 | O148: 9 | P148: 100 | Q148: 1 | R148: 101 | S148: 9
A149: 9010019 | C149: 190 | F149: 法宝测试技能 | G149: 测试法宝功能脚本 | H149: 1 | I149: icon_skill_10003 | J149: S901001 | K149: 901001 | M149: 1 | N149: 3 | O149: 10 | P149: 100 | Q149: 1 | R149: 101 | S149: 10
A151: =K151*10+O151-1 -> 9010020 | C151: 100 | F151: 翡翠葫芦 | G151: 战场区域形成一个域。敌人的功法弹道进入域后将降低敌人{0}%的功法弹道速度，持续{1}秒 | H151: 1 | I151: icon_skill_10003 | J151: =CONCATENATE("S",K151) -> S901002 | K151: 901002 | M151: 1 | N151: 3 | O151: 1 | P151: 50;9 | Q151: 1 | R151: 102 | S151: 1
A152: =K152*10+O152-1 -> 9010021 | C152: 110 | F152: 翡翠葫芦 | G152: 战场区域形成一个域。敌人的功法弹道进入域后将降低敌人{0}%的功法弹道速度，持续{1}秒 | H152: 1 | I152: icon_skill_10003 | J152: =CONCATENATE("S",K152) -> S901002 | K152: 901002 | M152: 1 | N152: 3 | O152: 2 | P152: 50;9 | Q152: 1 | R152: 102 | S152: 2
A153: 9010022 | C153: 120 | F153: 翡翠葫芦 | G153: 战场区域形成一个域。敌人的功法弹道进入域后将降低敌人{0}%的功法弹道速度，持续{1}秒 | H153: 1 | I153: icon_skill_10003 | J153: S901002 | K153: 901002 | M153: 1 | N153: 3 | O153: 3 | P153: 50;9 | Q153: 1 | R153: 102 | S153: 3
A154: 9010023 | C154: 130 | F154: 翡翠葫芦 | G154: 战场区域形成一个域。敌人的功法弹道进入域后将降低敌人{0}%的功法弹道速度，持续{1}秒 | H154: 1 | I154: icon_skill_10003 | J154: S901002 | K154: 901002 | M154: 1 | N154: 3 | O154: 4 | P154: 50;9 | Q154: 1 | R154: 102 | S154: 4
A155: 9010024 | C155: 140 | F155: 翡翠葫芦 | G155: 战场区域形成一个域。敌人的功法弹道进入域后将降低敌人{0}%的功法弹道速度，持续{1}秒 | H155: 1 | I155: icon_skill_10003 | J155: S901002 | K155: 901002 | M155: 1 | N155: 3 | O155: 5 | P155: 50;9 | Q155: 1 | R155: 102 | S155: 5
A156: 9010025 | C156: 150 | F156: 翡翠葫芦 | G156: 战场区域形成一个域。敌人的功法弹道进入域后将降低敌人{0}%的功法弹道速度，持续{1}秒 | H156: 1 | I156: icon_skill_10003 | J156: S901002 | K156: 901002 | M156: 1 | N156: 3 | O156: 6 | P156: 50;9 | Q156: 1 | R156: 102 | S156: 6
A157: 9010026 | C157: 160 | F157: 翡翠葫芦 | G157: 战场区域形成一个域。敌人的功法弹道进入域后将降低敌人{0}%的功法弹道速度，持续{1}秒 | H157: 1 | I157: icon_skill_10003 | J157: S901002 | K157: 901002 | M157: 1 | N157: 3 | O157: 7 | P157: 50;9 | Q157: 1 | R157: 102 | S157: 7
A158: 9010027 | C158: 170 | F158: 翡翠葫芦 | G158: 战场区域形成一个域。敌人的功法弹道进入域后将降低敌人{0}%的功法弹道速度，持续{1}秒 | H158: 1 | I158: icon_skill_10003 | J158: S901002 | K158: 901002 | M158: 1 | N158: 3 | O158: 8 | P158: 50;9 | Q158: 1 | R158: 102 | S158: 8
A159: 9010028 | C159: 180 | F159: 翡翠葫芦 | G159: 战场区域形成一个域。敌人的功法弹道进入域后将降低敌人{0}%的功法弹道速度，持续{1}秒 | H159: 1 | I159: icon_skill_10003 | J159: S901002 | K159: 901002 | M159: 1 | N159: 3 | O159: 9 | P159: 50;9 | Q159: 1 | R159: 102 | S159: 9
A160: 9010029 | C160: 190 | F160: 翡翠葫芦 | G160: 战场区域形成一个域。敌人的功法弹道进入域后将降低敌人{0}%的功法弹道速度，持续{1}秒 | H160: 1 | I160: icon_skill_10003 | J160: S901002 | K160: 901002 | M160: 1 | N160: 3 | O160: 10 | P160: 50;9 | Q160: 1 | R160: 102 | S160: 10
A162: =K162*10+O162-1 -> 9010030 | C162: 100 | F162: 玄龟盾 | G162: 前方形成一个土系防御盾，抵挡相当于自身生命上限{0}%的伤害 | H162: 1 | I162: icon_skill_10003 | J162: =CONCATENATE("S",K162) -> S901003 | K162: 901003 | M162: 1 | N162: 3 | O162: 1 | P162: 30 | Q162: 1 | R162: 103 | S162: 1
A163: =K163*10+O163-1 -> 9010031 | C163: 110 | F163: 玄龟盾 | G163: 前方形成一个土系防御盾，抵挡相当于自身生命上限{0}%的伤害 | H163: 1 | I163: icon_skill_10003 | J163: =CONCATENATE("S",K163) -> S901003 | K163: 901003 | M163: 1 | N163: 3 | O163: 2 | P163: 30 | Q163: 1 | R163: 103 | S163: 2
A164: 9010032 | C164: 120 | F164: 玄龟盾 | G164: 前方形成一个土系防御盾，抵挡相当于自身生命上限{0}%的伤害 | H164: 1 | I164: icon_skill_10003 | J164: S901003 | K164: 901003 | M164: 1 | N164: 3 | O164: 3 | P164: 30 | Q164: 1 | R164: 103 | S164: 3
A165: 9010033 | C165: 130 | F165: 玄龟盾 | G165: 前方形成一个土系防御盾，抵挡相当于自身生命上限{0}%的伤害 | H165: 1 | I165: icon_skill_10003 | J165: S901003 | K165: 901003 | M165: 1 | N165: 3 | O165: 4 | P165: 30 | Q165: 1 | R165: 103 | S165: 4
A166: 9010034 | C166: 140 | F166: 玄龟盾 | G166: 前方形成一个土系防御盾，抵挡相当于自身生命上限{0}%的伤害 | H166: 1 | I166: icon_skill_10003 | J166: S901003 | K166: 901003 | M166: 1 | N166: 3 | O166: 5 | P166: 30 | Q166: 1 | R166: 103 | S166: 5
A167: 9010035 | C167: 150 | F167: 玄龟盾 | G167: 前方形成一个土系防御盾，抵挡相当于自身生命上限{0}%的伤害 | H167: 1 | I167: icon_skill_10003 | J167: S901003 | K167: 901003 | M167: 1 | N167: 3 | O167: 6 | P167: 30 | Q167: 1 | R167: 103 | S167: 6
A168: 9010036 | C168: 160 | F168: 玄龟盾 | G168: 前方形成一个土系防御盾，抵挡相当于自身生命上限{0}%的伤害 | H168: 1 | I168: icon_skill_10003 | J168: S901003 | K168: 901003 | M168: 1 | N168: 3 | O168: 7 | P168: 30 | Q168: 1 | R168: 103 | S168: 7
A169: 9010037 | C169: 170 | F169: 玄龟盾 | G169: 前方形成一个土系防御盾，抵挡相当于自身生命上限{0}%的伤害 | H169: 1 | I169: icon_skill_10003 | J169: S901003 | K169: 901003 | M169: 1 | N169: 3 | O169: 8 | P169: 30 | Q169: 1 | R169: 103 | S169: 8
A170: 9010038 | C170: 180 | F170: 玄龟盾 | G170: 前方形成一个土系防御盾，抵挡相当于自身生命上限{0}%的伤害 | H170: 1 | I170: icon_skill_10003 | J170: S901003 | K170: 901003 | M170: 1 | N170: 3 | O170: 9 | P170: 30 | Q170: 1 | R170: 103 | S170: 9
A171: 9010039 | C171: 190 | F171: 玄龟盾 | G171: 前方形成一个土系防御盾，抵挡相当于自身生命上限{0}%的伤害 | H171: 1 | I171: icon_skill_10003 | J171: S901003 | K171: 901003 | M171: 1 | N171: 3 | O171: 10 | P171: 30 | Q171: 1 | R171: 103 | S171: 10
A173: =K173*10+O173-1 -> 9010040 | C173: 100 | F173: 九幽镇魂瓶 | G173: 对敌人照成伤害，并随机封锁敌人{0}个法宝，让其{1}秒内不能使用和不能充能 | H173: 1 | I173: icon_skill_10003 | J173: =CONCATENATE("S",K173) -> S901004 | K173: 901004 | M173: 1 | N173: 3 | O173: 1 | P173: 1;9 | Q173: 2 | R173: 101 | S173: 1
A174: =K174*10+O174-1 -> 9010041 | C174: 110 | F174: 九幽镇魂瓶 | G174: 对敌人照成伤害，并随机封锁敌人{0}个法宝，让其{1}秒内不能使用和不能充能 | H174: 1 | I174: icon_skill_10003 | J174: =CONCATENATE("S",K174) -> S901004 | K174: 901004 | M174: 1 | N174: 3 | O174: 2 | P174: 1;9 | Q174: 2 | R174: 101 | S174: 2
A175: 9010042 | C175: 120 | F175: 九幽镇魂瓶 | G175: 对敌人照成伤害，并随机封锁敌人{0}个法宝，让其{1}秒内不能使用和不能充能 | H175: 1 | I175: icon_skill_10003 | J175: S901004 | K175: 901004 | M175: 1 | N175: 3 | O175: 3 | P175: 1;9 | Q175: 2 | R175: 101 | S175: 3
A176: 9010043 | C176: 130 | F176: 九幽镇魂瓶 | G176: 对敌人照成伤害，并随机封锁敌人{0}个法宝，让其{1}秒内不能使用和不能充能 | H176: 1 | I176: icon_skill_10003 | J176: S901004 | K176: 901004 | M176: 1 | N176: 3 | O176: 4 | P176: 1;9 | Q176: 2 | R176: 101 | S176: 4
A177: 9010044 | C177: 140 | F177: 九幽镇魂瓶 | G177: 对敌人照成伤害，并随机封锁敌人{0}个法宝，让其{1}秒内不能使用和不能充能 | H177: 1 | I177: icon_skill_10003 | J177: S901004 | K177: 901004 | M177: 1 | N177: 3 | O177: 5 | P177: 1;9 | Q177: 2 | R177: 101 | S177: 5
A178: 9010045 | C178: 150 | F178: 九幽镇魂瓶 | G178: 对敌人照成伤害，并随机封锁敌人{0}个法宝，让其{1}秒内不能使用和不能充能 | H178: 1 | I178: icon_skill_10003 | J178: S901004 | K178: 901004 | M178: 1 | N178: 3 | O178: 6 | P178: 1;9 | Q178: 2 | R178: 101 | S178: 6
A179: 9010046 | C179: 160 | F179: 九幽镇魂瓶 | G179: 对敌人照成伤害，并随机封锁敌人{0}个法宝，让其{1}秒内不能使用和不能充能 | H179: 1 | I179: icon_skill_10003 | J179: S901004 | K179: 901004 | M179: 1 | N179: 3 | O179: 7 | P179: 1;9 | Q179: 2 | R179: 101 | S179: 7
A180: 9010047 | C180: 170 | F180: 九幽镇魂瓶 | G180: 对敌人照成伤害，并随机封锁敌人{0}个法宝，让其{1}秒内不能使用和不能充能 | H180: 1 | I180: icon_skill_10003 | J180: S901004 | K180: 901004 | M180: 1 | N180: 3 | O180: 8 | P180: 1;9 | Q180: 2 | R180: 101 | S180: 8
A181: 9010048 | C181: 180 | F181: 九幽镇魂瓶 | G181: 对敌人照成伤害，并随机封锁敌人{0}个法宝，让其{1}秒内不能使用和不能充能 | H181: 1 | I181: icon_skill_10003 | J181: S901004 | K181: 901004 | M181: 1 | N181: 3 | O181: 9 | P181: 1;9 | Q181: 2 | R181: 101 | S181: 9
A182: 9010049 | C182: 190 | F182: 九幽镇魂瓶 | G182: 对敌人照成伤害，并随机封锁敌人{0}个法宝，让其{1}秒内不能使用和不能充能 | H182: 1 | I182: icon_skill_10003 | J182: S901004 | K182: 901004 | M182: 1 | N182: 3 | O182: 10 | P182: 1;9 | Q182: 2 | R182: 101 | S182: 10
A184: =K184*10+O184-1 -> 9010050 | C184: 100 | F184: 神龙鼎 | G184: 对敌人照成伤害，使敌人五行混乱。敌人的功法每次使用功法都将使用最低灵根属性作为伤害计算，持续{0}秒 | H184: 1 | I184: icon_skill_10003 | J184: =CONCATENATE("S",K184) -> S901005 | K184: 901005 | M184: 1 | N184: 3 | O184: 1 | P184: 9 | Q184: 1 | R184: 102 | S184: 1
A185: =K185*10+O185-1 -> 9010051 | C185: 110 | F185: 神龙鼎 | G185: 对敌人照成伤害，使敌人五行混乱。敌人的功法每次使用功法都将使用最低灵根属性作为伤害计算，持续{0}秒 | H185: 1 | I185: icon_skill_10003 | J185: =CONCATENATE("S",K185) -> S901005 | K185: 901005 | M185: 1 | N185: 3 | O185: 2 | P185: 9 | Q185: 1 | R185: 102 | S185: 2
A186: 9010052 | C186: 120 | F186: 神龙鼎 | G186: 对敌人照成伤害，使敌人五行混乱。敌人的功法每次使用功法都将使用最低灵根属性作为伤害计算，持续{0}秒 | H186: 1 | I186: icon_skill_10003 | J186: S901005 | K186: 901005 | M186: 1 | N186: 3 | O186: 3 | P186: 9 | Q186: 1 | R186: 102 | S186: 3
A187: 9010053 | C187: 130 | F187: 神龙鼎 | G187: 对敌人照成伤害，使敌人五行混乱。敌人的功法每次使用功法都将使用最低灵根属性作为伤害计算，持续{0}秒 | H187: 1 | I187: icon_skill_10003 | J187: S901005 | K187: 901005 | M187: 1 | N187: 3 | O187: 4 | P187: 9 | Q187: 1 | R187: 102 | S187: 4
A188: 9010054 | C188: 140 | F188: 神龙鼎 | G188: 对敌人照成伤害，使敌人五行混乱。敌人的功法每次使用功法都将使用最低灵根属性作为伤害计算，持续{0}秒 | H188: 1 | I188: icon_skill_10003 | J188: S901005 | K188: 901005 | M188: 1 | N188: 3 | O188: 5 | P188: 9 | Q188: 1 | R188: 102 | S188: 5
A189: 9010055 | C189: 150 | F189: 神龙鼎 | G189: 对敌人照成伤害，使敌人五行混乱。敌人的功法每次使用功法都将使用最低灵根属性作为伤害计算，持续{0}秒 | H189: 1 | I189: icon_skill_10003 | J189: S901005 | K189: 901005 | M189: 1 | N189: 3 | O189: 6 | P189: 9 | Q189: 1 | R189: 102 | S189: 6
A190: 9010056 | C190: 160 | F190: 神龙鼎 | G190: 对敌人照成伤害，使敌人五行混乱。敌人的功法每次使用功法都将使用最低灵根属性作为伤害计算，持续{0}秒 | H190: 1 | I190: icon_skill_10003 | J190: S901005 | K190: 901005 | M190: 1 | N190: 3 | O190: 7 | P190: 9 | Q190: 1 | R190: 102 | S190: 7
A191: 9010057 | C191: 170 | F191: 神龙鼎 | G191: 对敌人照成伤害，使敌人五行混乱。敌人的功法每次使用功法都将使用最低灵根属性作为伤害计算，持续{0}秒 | H191: 1 | I191: icon_skill_10003 | J191: S901005 | K191: 901005 | M191: 1 | N191: 3 | O191: 8 | P191: 9 | Q191: 1 | R191: 102 | S191: 8
A192: 9010058 | C192: 180 | F192: 神龙鼎 | G192: 对敌人照成伤害，使敌人五行混乱。敌人的功法每次使用功法都将使用最低灵根属性作为伤害计算，持续{0}秒 | H192: 1 | I192: icon_skill_10003 | J192: S901005 | K192: 901005 | M192: 1 | N192: 3 | O192: 9 | P192: 9 | Q192: 1 | R192: 102 | S192: 9
A193: 9010059 | C193: 190 | F193: 神龙鼎 | G193: 对敌人照成伤害，使敌人五行混乱。敌人的功法每次使用功法都将使用最低灵根属性作为伤害计算，持续{0}秒 | H193: 1 | I193: icon_skill_10003 | J193: S901005 | K193: 901005 | M193: 1 | N193: 3 | O193: 10 | P193: 9 | Q193: 1 | R193: 102 | S193: 10
A195: =K195*10+O195-1 -> 9010060 | C195: 100 | F195: 破天斧 | G195: 无视敌人灵根，对敌人造成{0}%伤害，同时让五行伤势+{1} | H195: 1 | I195: icon_skill_10003 | J195: =CONCATENATE("S",K195) -> S901006 | K195: 901006 | M195: 1 | N195: 3 | O195: 1 | P195: 100;5 | Q195: 1 | R195: 103 | S195: 1
A196: =K196*10+O196-1 -> 9010061 | C196: 110 | F196: 破天斧 | G196: 无视敌人灵根，对敌人造成{0}%伤害，同时让五行伤势+{1} | H196: 1 | I196: icon_skill_10003 | J196: =CONCATENATE("S",K196) -> S901006 | K196: 901006 | M196: 1 | N196: 3 | O196: 2 | P196: 100;5 | Q196: 1 | R196: 103 | S196: 2
A197: 9010062 | C197: 120 | F197: 破天斧 | G197: 无视敌人灵根，对敌人造成{0}%伤害，同时让五行伤势+{1} | H197: 1 | I197: icon_skill_10003 | J197: S901006 | K197: 901006 | M197: 1 | N197: 3 | O197: 3 | P197: 100;5 | Q197: 1 | R197: 103 | S197: 3
A198: 9010063 | C198: 130 | F198: 破天斧 | G198: 无视敌人灵根，对敌人造成{0}%伤害，同时让五行伤势+{1} | H198: 1 | I198: icon_skill_10003 | J198: S901006 | K198: 901006 | M198: 1 | N198: 3 | O198: 4 | P198: 100;5 | Q198: 1 | R198: 103 | S198: 4
A199: 9010064 | C199: 140 | F199: 破天斧 | G199: 无视敌人灵根，对敌人造成{0}%伤害，同时让五行伤势+{1} | H199: 1 | I199: icon_skill_10003 | J199: S901006 | K199: 901006 | M199: 1 | N199: 3 | O199: 5 | P199: 100;5 | Q199: 1 | R199: 103 | S199: 5
A200: 9010065 | C200: 150 | F200: 破天斧 | G200: 无视敌人灵根，对敌人造成{0}%伤害，同时让五行伤势+{1} | H200: 1 | I200: icon_skill_10003 | J200: S901006 | K200: 901006 | M200: 1 | N200: 3 | O200: 6 | P200: 100;5 | Q200: 1 | R200: 103 | S200: 6
A201: 9010066 | C201: 160 | F201: 破天斧 | G201: 无视敌人灵根，对敌人造成{0}%伤害，同时让五行伤势+{1} | H201: 1 | I201: icon_skill_10003 | J201: S901006 | K201: 901006 | M201: 1 | N201: 3 | O201: 7 | P201: 100;5 | Q201: 1 | R201: 103 | S201: 7
A202: 9010067 | C202: 170 | F202: 破天斧 | G202: 无视敌人灵根，对敌人造成{0}%伤害，同时让五行伤势+{1} | H202: 1 | I202: icon_skill_10003 | J202: S901006 | K202: 901006 | M202: 1 | N202: 3 | O202: 8 | P202: 100;5 | Q202: 1 | R202: 103 | S202: 8
A203: 9010068 | C203: 180 | F203: 破天斧 | G203: 无视敌人灵根，对敌人造成{0}%伤害，同时让五行伤势+{1} | H203: 1 | I203: icon_skill_10003 | J203: S901006 | K203: 901006 | M203: 1 | N203: 3 | O203: 9 | P203: 100;5 | Q203: 1 | R203: 103 | S203: 9
A204: 9010069 | C204: 190 | F204: 破天斧 | G204: 无视敌人灵根，对敌人造成{0}%伤害，同时让五行伤势+{1} | H204: 1 | I204: icon_skill_10003 | J204: S901006 | K204: 901006 | M204: 1 | N204: 3 | O204: 10 | P204: 100;5 | Q204: 1 | R204: 103 | S204: 10
A206: =K206*10+O206-1 -> 9010070 | C206: 100 | F206: 琉璃宝塔 | G206: 对敌人照成水系伤害，封锁敌人筋脉随机{0}个格子持续{1}秒 | H206: 1 | I206: icon_skill_10003 | J206: =CONCATENATE("S",K206) -> S901007 | K206: 901007 | M206: 1 | N206: 3 | O206: 1 | P206: 3;6 | Q206: 2 | R206: 101 | S206: 1
A207: =K207*10+O207-1 -> 9010071 | C207: 110 | F207: 琉璃宝塔 | G207: 对敌人照成水系伤害，封锁敌人筋脉随机{0}个格子持续{1}秒 | H207: 1 | I207: icon_skill_10003 | J207: =CONCATENATE("S",K207) -> S901007 | K207: 901007 | M207: 1 | N207: 3 | O207: 2 | P207: 3;6 | Q207: 2 | R207: 101 | S207: 2
A208: 9010072 | C208: 120 | F208: 琉璃宝塔 | G208: 对敌人照成水系伤害，封锁敌人筋脉随机{0}个格子持续{1}秒 | H208: 1 | I208: icon_skill_10003 | J208: S901007 | K208: 901007 | M208: 1 | N208: 3 | O208: 3 | P208: 3;6 | Q208: 2 | R208: 101 | S208: 3
A209: 9010073 | C209: 130 | F209: 琉璃宝塔 | G209: 对敌人照成水系伤害，封锁敌人筋脉随机{0}个格子持续{1}秒 | H209: 1 | I209: icon_skill_10003 | J209: S901007 | K209: 901007 | M209: 1 | N209: 3 | O209: 4 | P209: 3;6 | Q209: 2 | R209: 101 | S209: 4
A210: 9010074 | C210: 140 | F210: 琉璃宝塔 | G210: 对敌人照成水系伤害，封锁敌人筋脉随机{0}个格子持续{1}秒 | H210: 1 | I210: icon_skill_10003 | J210: S901007 | K210: 901007 | M210: 1 | N210: 3 | O210: 5 | P210: 3;6 | Q210: 2 | R210: 101 | S210: 5
A211: 9010075 | C211: 150 | F211: 琉璃宝塔 | G211: 对敌人照成水系伤害，封锁敌人筋脉随机{0}个格子持续{1}秒 | H211: 1 | I211: icon_skill_10003 | J211: S901007 | K211: 901007 | M211: 1 | N211: 3 | O211: 6 | P211: 3;6 | Q211: 2 | R211: 101 | S211: 6
A212: 9010076 | C212: 160 | F212: 琉璃宝塔 | G212: 对敌人照成水系伤害，封锁敌人筋脉随机{0}个格子持续{1}秒 | H212: 1 | I212: icon_skill_10003 | J212: S901007 | K212: 901007 | M212: 1 | N212: 3 | O212: 7 | P212: 3;6 | Q212: 2 | R212: 101 | S212: 7
A213: 9010077 | C213: 170 | F213: 琉璃宝塔 | G213: 对敌人照成水系伤害，封锁敌人筋脉随机{0}个格子持续{1}秒 | H213: 1 | I213: icon_skill_10003 | J213: S901007 | K213: 901007 | M213: 1 | N213: 3 | O213: 8 | P213: 3;6 | Q213: 2 | R213: 101 | S213: 8
A214: 9010078 | C214: 180 | F214: 琉璃宝塔 | G214: 对敌人照成水系伤害，封锁敌人筋脉随机{0}个格子持续{1}秒 | H214: 1 | I214: icon_skill_10003 | J214: S901007 | K214: 901007 | M214: 1 | N214: 3 | O214: 9 | P214: 3;6 | Q214: 2 | R214: 101 | S214: 9
A215: 9010079 | C215: 190 | F215: 琉璃宝塔 | G215: 对敌人照成水系伤害，封锁敌人筋脉随机{0}个格子持续{1}秒 | H215: 1 | I215: icon_skill_10003 | J215: S901007 | K215: 901007 | M215: 1 | N215: 3 | O215: 10 | P215: 3;6 | Q215: 2 | R215: 101 | S215: 10
A217: =K217*10+O217-1 -> 9010080 | C217: 100 | F217: 玉莲守心灯 | G217: 一盏明灯围绕玩家，{0}秒内抵消所有负面效果，每{1}秒触发1次。 | H217: 1 | I217: icon_skill_10003 | J217: =CONCATENATE("S",K217) -> S901008 | K217: 901008 | M217: 1 | N217: 3 | O217: 1 | P217: 6;30 | Q217: 1 | R217: 102 | S217: 1
A218: =K218*10+O218-1 -> 9010081 | C218: 110 | F218: 玉莲守心灯 | G218: 一盏明灯围绕玩家，{0}秒内抵消所有负面效果，每{1}秒触发1次。 | H218: 1 | I218: icon_skill_10003 | J218: =CONCATENATE("S",K218) -> S901008 | K218: 901008 | M218: 1 | N218: 3 | O218: 2 | P218: 6;30 | Q218: 1 | R218: 102 | S218: 2
A219: 9010082 | C219: 120 | F219: 玉莲守心灯 | G219: 一盏明灯围绕玩家，{0}秒内抵消所有负面效果，每{1}秒触发1次。 | H219: 1 | I219: icon_skill_10003 | J219: S901008 | K219: 901008 | M219: 1 | N219: 3 | O219: 3 | P219: 6;30 | Q219: 1 | R219: 102 | S219: 3
... 11 more rows

Sheet SkillPowerupConfig
A1: ID | B1: MainPower | C1: SkillPower1
A2: int | B2: int | C2: float
A4: 等级 | B4: 功法对拼标准强度 | C4: 标准强度百分比
A5: 1 | B5: 100 | C5: 100 | D5: 造成100%攻击力+200点伤害 | G5: {0} | H5: 1 | I5: 2
A6: 2 | B6: 120 | C6: 110
A7: 3 | B7: 140 | C7: 120
A8: 4 | B8: 160 | C8: 130
A9: 5 | B9: 180 | C9: 140
A10: 6 | B10: 200 | C10: 150
A11: 7 | B11: 220 | C11: 160
A12: 8 | B12: 240 | C12: 170
A13: 9 | B13: 260 | C13: 180
A14: 10 | B14: 280 | C14: 190
A15: 11 | B15: 300 | C15: 200
A16: 12 | B16: 320 | C16: 210
A17: 13 | B17: 340 | C17: 220
A18: 14 | B18: 360 | C18: 230
A19: 15 | B19: 380 | C19: 240
A20: 16 | B20: 400 | C20: 250
A21: 17 | B21: 420 | C21: 260
A22: 18 | B22: 440 | C22: 270
A23: 19 | B23: 460 | C23: 280
A24: 20 | B24: 480 | C24: 290
A25: 21 | B25: 500 | C25: 300
A26: 22 | B26: 520 | C26: 310
A27: 23 | B27: 540 | C27: 320
A28: 24 | B28: 560 | C28: 330
A29: 25 | B29: 580 | C29: 340
A30: 26 | B30: 600 | C30: 350
A31: 27 | B31: 620 | C31: 360
A32: 28 | B32: 640 | C32: 370
A33: 29 | B33: 660 | C33: 380
A34: 30 | B34: 680 | C34: 390
A35: 31 | B35: 700 | C35: 400
A36: 32 | B36: 720 | C36: 410
A37: 33 | B37: 740 | C37: 420
A38: 34 | B38: 760 | C38: 430
A39: 35 | B39: 780 | C39: 440
A40: 36 | B40: 800 | C40: 450
A41: 37 | B41: 820 | C41: 460
A42: 38 | B42: 840 | C42: 470
A43: 39 | B43: 860 | C43: 480
A44: 40 | B44: 880 | C44: 490
A45: 41 | B45: 900 | C45: 500
A46: 42 | B46: 920 | C46: 510
A47: 43 | B47: 940 | C47: 520
A48: 44 | B48: 960 | C48: 530
A49: 45 | B49: 980 | C49: 540
A50: 46 | B50: 1000 | C50: 550
A51: 47 | B51: 1020 | C51: 560
A52: 48 | B52: 1040 | C52: 570
A53: 49 | B53: 1060 | C53: 580
A54: 50 | B54: 1080 | C54: 590
A55: 51 | B55: 1100 | C55: 600
A56: 52 | B56: 1120 | C56: 610
A57: 53 | B57: 1140 | C57: 620
A58: 54 | B58: 1160 | C58: 630
A59: 55 | B59: 1180 | C59: 640
A60: 56 | B60: 1200 | C60: 650
A61: 57 | B61: 1220 | C61: 660
A62: 58 | B62: 1240 | C62: 670
A63: 59 | B63: 1260 | C63: 680
A64: 60 | B64: 1280 | C64: 690

Sheet 技能设计
